bitfinex-derivatives/quotes_SOLF0:USTF0_20251119
["timestamp","ask_amount","ask_price","bid_price","bid_amount"]
[1763566119997,3.25,136.38,136.28,6.6087]
[1763566120297,3.25,136.38,136.29,22.568]
[1763566120500,3.25,136.38,136.29,15.96]
[1763566120700,3.25,136.38,136.29,37.80452564]
[1763566120899,0.05527991,136.35,136.29,15.96]
[1763566121497,0.05527991,136.35,136.23,111.98292333]
[1763566121498,3.30527991,136.35,136.23,111.98292333]
[1763566121708,0.04761818,136.3,136.2,102.8636]
[1763566122007,0.05565662,136.26,136.21,15.96]
[1763566122400,0.05565662,136.26,136.2,102.8645]
[1763566122596,0.05565662,136.26,136.21,118.8112]
[1763566122801,0.05565662,136.26,136.21,140.44160922]
[1763566123207,3.25,136.32,136.22,102.8464]
[1763566123508,3.25,136.32,136.21,37.59040922]
[1763566123704,3.25,136.32,136.21,140.44400922]
[1763566123905,3.25,136.32,136.23,6.611]
[1763566124305,0.05361664,136.29,136.26,0.04673316]
[1763566125503,3.30361664,136.29,136.26,0.04673316]
[1763566126312,0.05361664,136.29,136.26,0.04673316]
[1763566127115,6.6046,136.37,136.29,102.7963]
[1763566127116,3.25,136.37,136.29,102.7963]
[1763566127308,3.25,136.37,136.29,15.98]
[1763566127907,3.25,136.37,136.26,102.8188]
[1763566128113,0.0537263,136.33,136.3,0.05574402]
[1763566128718,3.25,136.41,136.31,102.7779]
[1763566128907,3.25,136.41,136.3,102.7831]
[1763566129109,3.25,136.41,136.32,102.7733]
[1763566129302,8.76934602,136.44,136.34,102.7588]
[1763566129515,3.25,136.43,136.35,6.6049]
[1763566129713,3.25,136.43,136.38,0.04884949]
[1763566130012,3.30600868,136.4,136.38,0.04884949]
[1763566130317,3.29637756,136.4,136.31,15.98]
[1763566130513,3.25,136.4,136.31,15.98]
[1763566130817,3.25,136.4,136.32,6.6066]
[1763566131222,0.05630407,136.37,136.35,0.05072594]
[1763566131730,111.53892188,136.48,136.35,0.05072594]
[1763566131731,3.25,136.44,136.35,0.05072594]
[1763566131914,5.52478826,136.44,136.34,102.7555]
[1763566132112,3.25,136.43,136.34,102.7555]
[1763566132316,3.25,136.43,136.34,15.98]
[1763566132723,3.3049017,136.4,136.37,0.05631834]
[1763566132915,0.0549017,136.4,136.37,0.05631834]
[1763566133314,0.0549017,136.4,136.38,6.6037]
[1763566133515,0.0549017,136.4,136.37,0.05631834]
[1763566133927,0.0549017,136.4,136.38,6.6039]
[1763566134323,0.0549017,136.4,136.37,0.05631834]
[1763566136128,3.3049017,136.4,136.37,0.05631834]
[1763566136529,0.0549017,136.4,136.37,0.05631834]
[1763566137431,3.3049017,136.4,136.37,0.05631834]
[1763566137627,0.0549017,136.4,136.37,0.05631834]
[1763566139922,0.0549017,136.4,136.37,6.66061834]
[1763566140228,0.0549017,136.4,136.37,0.05631834]
[1763566140932,3.3049017,136.4,136.37,0.05631834]
[1763566141520,3.25,136.38,136.21,124.48270922]
[1763566141729,3.25,136.38,136.24,102.8342]
[1763566141730,3.25,136.37,136.24,102.8342]
[1763566142132,3.25,136.37,136.26,102.8152]
[1763566142334,3.25,136.37,136.27,15.96]
[1763566142522,0.05027546,136.33,136.31,0.05140356]
[1763566142830,3.25,136.44,136.33,102.7633]
[1763566143031,3.25,136.44,136.34,102.7584]
[1763566143231,3.25,136.44,136.36,6.6047]
[1763566143432,3.25,136.43,136.36,6.6047]
[1763566143625,0.04748263,136.41,136.38,0.05164878]
[1763566144245,3.25,136.47,136.4,102.7134]
[1763566144428,13.37784047,136.54,136.41,15.96]
[1763566144429,3.25,136.49,136.41,15.96]
[1763566144631,3.25,136.49,136.36,124.7787]
[1763566144828,3.25,136.49,136.37,15.96]
[1763566145131,0.05130684,136.44,136.42,0.05553109]
[1763566145335,3.30225212,136.44,136.42,0.05553109]
[1763566146535,0.05225212,136.44,136.42,0.05553109]
[1763566146737,0.05225212,136.44,136.42,6.65733109]
[1763566146935,0.05225212,136.44,136.42,0.05553109]
[1763566147335,5.50914712,136.52,136.42,102.75143109]
[1763566147336,5.50914712,136.51,136.42,102.75143109]
[1763566147635,3.25,136.56,136.47,102.66]
[1763566147844,3.25,136.56,136.48,22.5587]
[1763566148029,3.25,136.56,136.45,102.6742]
[1763566148237,3.25,136.56,136.43,9.14342333]
[1763566148432,3.31,136.5,136.48,0.04707382]
[1763566149343,0.05419729,136.51,136.48,0.04707382]
[1763566150736,0.05419729,136.51,136.49,6.5982]
[1763566151138,3.31,136.59,136.49,6.5982]
[1763566151334,102.5669,136.6,136.47,22.18077466]
[1763566151539,3.31,136.58,136.48,15.96]
[1763566152136,0.05423291,136.54,136.52,0.05232755]
[1763566152842,3.36423291,136.54,136.52,0.05232755]
[1763566153635,3.36423291,136.54,136.46,15.96]
[1763566153934,3.31,136.54,136.46,15.96]
[1763566154636,0.05078974,136.51,136.49,0.0515703]
[1763566155731,3.31,136.58,136.49,0.0515703]
[1763566155935,3.31,136.56,136.46,6.5997]
[1763566156145,3.31,136.56,136.46,22.5397]
[1763566156343,3.31,136.56,136.46,15.94]
[1763566156746,0.04915389,136.52,136.5,0.04751781]
[1763566157040,102.5665,136.6,136.5,0.04751781]
[1763566157041,3.31,136.6,136.5,0.04751781]
[1763566157246,3.31,136.6,136.49,118.582]
[1763566157841,3.31,136.6,136.45,9.14342333]
[1763566158044,0.05149751,136.54,136.51,0.05390315]
[1763566158237,0.04709517,136.54,136.51,0.04740047]
[1763566160140,3.35709517,136.54,136.51,0.04740047]
[1763566161251,0.04709517,136.54,136.51,0.04740047]
[1763566161456,0.04709517,136.54,136.51,102.67520047]
[1763566161637,3.31,136.64,136.52,102.6234]
[1763566161950,3.31,136.64,136.53,15.94]
[1763566162147,3.31,136.63,136.49,111.78632333]
[1763566162348,3.31,136.63,136.5,118.5783]
[1763566162547,3.31,136.63,136.53,102.616]
[1763566162750,0.04965441,136.58,136.55,6.64549374]
[1763566163062,0.04965441,136.58,136.55,0.04989374]
[1763566164351,3.35965441,136.58,136.55,0.04989374]
[1763566164745,0.04965441,136.58,136.55,0.04989374]
[1763566165250,3.26965441,136.58,136.55,0.04989374]
[1763566166446,0.04965441,136.58,136.55,0.04989374]
[1763566166846,3.26965441,136.58,136.55,0.04989374]
[1763566167040,0.04965441,136.58,136.55,0.04989374]
[1763566168149,3.26965441,136.58,136.55,0.04989374]
[1763566170947,3.26965441,136.58,136.51,15.94]
[1763566171147,3.26965441,136.58,136.49,15.94]
[1763566171347,3.22,136.58,136.49,15.94]
[1763566171951,0.04775688,136.55,136.52,0.05072856]
[1763566172553,0.04775688,136.55,136.52,102.67072856]
[1763566172758,0.04775688,136.55,136.52,0.05072856]
[1763566173660,0.04775688,136.55,136.53,6.5966]
[1763566174357,3.22,136.63,136.54,118.5266]
[1763566174666,3.22,136.63,136.54,15.92]
[1763566174848,3.22,136.63,136.56,6.5949]
[1763566175045,3.22,136.63,136.54,15.92]
[1763566175247,3.2746284,136.6,136.57,0.0467256]
[1763566175447,3.27563803,136.6,136.57,0.04802167]
[1763566175652,3.27563803,136.6,136.53,6.5963]
[1763566176052,3.27563803,136.6,136.52,102.6228]
[1763566176253,3.22,136.6,136.52,15.92]
[1763566176658,0.05445045,136.57,136.55,0.05057988]
[1763566177264,0.05445045,136.57,136.55,6.64627988]
[1763566177759,0.05445045,136.57,136.55,0.05057988]
[1763566178850,3.17,136.64,136.55,102.64607988]
[1763566179057,3.17,136.64,136.55,102.5955]
[1763566179556,3.17,136.63,136.53,102.6126]
[1763566179758,3.17,136.62,136.53,15.92]
[1763566179964,0.05435347,136.59,136.56,0.04628446]
[1763566180156,3.22435347,136.59,136.56,0.04628446]
[1763566180463,3.22435347,136.59,136.48,115.848]
[1763566180464,3.22435347,136.59,136.49,118.5648]
[1763566180665,3.17,136.59,136.49,118.5648]
[1763566180857,3.17,136.59,136.51,6.5976]
[1763566181058,3.17,136.58,136.5,15.92]
[1763566181261,0.04646063,136.55,136.5,15.92]
[1763566181460,0.04646063,136.55,136.53,0.04679246]
[1763566183559,0.04646063,136.55,136.53,6.64339246]
[1763566184961,0.04646063,136.55,136.53,0.04679246]
[1763566185164,3.21646063,136.55,136.53,0.04679246]
[1763566185766,0.04646063,136.55,136.53,0.04679246]
[1763566186065,0.04646063,136.55,136.53,6.64329246]
[1763566186458,3.21646063,136.55,136.43,227.17499055]
[1763566186660,3.17,136.54,136.43,21.80229055]
[1763566186859,3.17,136.52,136.4,102.711]
[1763566187160,3.17,136.52,136.39,118.6409]
[1763566187161,3.17,136.51,136.39,118.6409]
[1763566187368,3.17,136.51,136.41,102.7057]
[1763566187570,0.04620806,136.47,136.45,0.05333708]
[1763566187759,3.21620806,136.47,136.45,0.05333708]
[1763566188261,0.04620806,136.47,136.45,0.05333708]
[1763566188458,3.21620806,136.47,136.45,0.05333708]
[1763566189866,3.21620806,136.47,136.39,22.48209105]
[1763566189867,3.17,136.45,136.39,22.48209105]
[1763566190072,3.17,136.45,136.37,15.92]
[1763566190264,3.17,136.45,136.35,102.7481]
[1763566190459,3.17,136.45,136.35,37.75049174]
[1763566190864,0.05395035,136.41,136.39,0.05633621]
[1763566192170,3.17,136.48,136.39,102.77113621]
[1763566192356,3.17,136.48,136.39,102.7148]
[1763566192561,3.17,136.48,136.41,6.6023]
[1763566193063,3.17,136.48,136.4,15.92]
[1763566193266,3.2164175,136.46,136.43,0.04971005]
[1763566197671,3.2164175,136.46,136.37,22.5242]
[1763566197980,3.17,136.46,136.37,6.6042]
[1763566198270,3.17,136.45,136.37,6.6042]
[1763566198672,3.17,136.45,136.4,0.05176513]
[1763566198875,3.17,136.41,136.4,0.05176513]
[1763566199876,3.22205804,136.42,136.4,0.05176513]
[1763566200373,3.17,136.49,136.4,1.51176513]
[1763566200584,3.17,136.48,136.39,15.92]
[1763566200783,3.17,136.47,136.39,15.92]
[1763566200983,3.17,136.5,136.39,15.92]
[1763566201478,0.05510265,136.46,136.43,0.04995203]
[1763566201674,3.22510265,136.46,136.43,0.04995203]
[1763566202275,3.22510265,136.46,136.35,124.57919174]
[1763566202475,3.17,136.46,136.36,102.7438]
[1763566202680,3.17,136.49,136.4,102.7132]
[1763566202977,3.17,136.49,136.38,102.7268]
[1763566203176,3.17,136.49,136.36,130.74334604]
[1763566203378,3.22560513,136.44,136.41,0.04643657]
[1763566203583,3.17,136.43,136.35,21.83049174]
[1763566203882,5.95954604,136.42,136.3,102.7865]
[1763566204083,3.17,136.41,136.3,102.7846]
[1763566204280,3.17,136.45,136.37,102.7344]
[1763566204484,3.17,136.45,136.38,102.7283]
[1763566204675,3.17,136.45,136.4,6.6029]
[1763566204875,3.17,136.42,136.4,0.04690719]
[1763566205070,3.22557463,136.42,136.4,0.04823247]
[1763566205676,0.05557463,136.42,136.4,0.04823247]
[1763566206178,3.17,136.48,136.42,6.6016]
[1763566206376,3.17,136.48,136.37,124.7717]
[1763566206571,3.17,136.48,136.38,102.7289]
[1763566206771,3.17,136.48,136.39,15.92]
[1763566206976,3.17,136.48,136.39,118.6368]
[1763566207387,0.05035407,136.45,136.42,0.04938346]
[1763566207582,3.22035407,136.45,136.42,0.04938346]
[1763566207776,3.34035407,136.45,136.42,0.04938346]
[1763566208285,3.34035407,136.45,136.36,15.92]
[1763566208482,3.29,136.45,136.36,15.92]
[1763566209279,0.05624512,136.42,136.39,0.0524022]
[1763566211282,3.34624512,136.42,136.39,0.0524022]
[1763566213286,3.34624512,136.42,136.3,21.90677827]
[1763566213480,3.29,136.42,136.3,102.7879]
[1763566213888,3.29,136.42,136.3,118.7079]
[1763566214285,0.04815776,136.37,136.35,0.05465963]
[1763566214484,0.04764068,136.37,136.35,0.05465963]
[1763566214681,0.04764068,136.37,136.35,6.65995963]
[1763566214988,3.29,136.45,136.35,0.05465963]
[1763566215181,3.29,136.44,136.34,22.5257]
[1763566215394,3.29,136.44,136.34,15.92]
[1763566215693,3.29,136.44,136.34,22.5256]
[1763566215988,0.05463665,136.4,136.38,0.05475843]
[1763566217593,0.05463665,136.4,136.38,6.65855843]
[1763566218294,3.29,136.45,136.4,6.6027]
[1763566218793,3.29,136.49,136.41,102.7058]
[1763566219096,3.29,136.53,136.43,102.6883]
[1763566219295,3.29,136.53,136.44,15.92]
[1763566219502,0.05454245,136.49,136.47,0.05645798]
[1763566219695,3.34454245,136.49,136.47,0.05645798]
[1763566220399,3.34454245,136.49,136.38,5.95954604]
[1763566220699,3.29,136.48,136.39,15.92]
[1763566220897,3.29,136.48,136.38,15.92]
[1763566221296,3.29,136.48,136.39,6.6033]
[1763566221494,3.34442046,136.45,136.42,0.04840744]
[1763566223804,0.05442046,136.45,136.42,0.04840744]
[1763566224116,0.05442046,136.45,136.43,6.6014]
[1763566224306,5.52376309,136.53,136.43,102.6867]
[1763566224307,8.76376309,136.53,136.43,102.6867]
[1763566224502,3.24,136.52,136.29,17.5285037]
[1763566224710,3.24,136.46,136.32,6.6067]
[1763566224910,3.24,136.45,136.32,15.92]
[1763566225104,3.24,136.41,136.32,15.92]
[1763566225307,0.0480899,136.38,136.35,0.04952382]
[1763566225706,3.2880899,136.38,136.35,0.04952382]
[1763566226923,3.2880899,136.38,136.27,6.609]
[1763566227219,3.24,136.37,136.26,102.818]
[1763566227415,3.24,136.37,136.27,15.92]
[1763566227714,108.67714604,136.4,136.27,15.92]
[1763566227715,3.24,136.36,136.28,6.6086]
[1763566227918,0.05007248,136.33,136.31,0.04973784]
[1763566228303,3.29007248,136.33,136.31,0.04973784]
[1763566228706,3.24,136.31,136.2,190.842]
[1763566228917,3.24,136.31,136.21,15.92]
[1763566229300,3.24,136.31,136.22,6.6114]
[1763566229503,3.24,136.31,136.21,102.8567]
[1763566229700,0.048662,136.27,136.25,0.04780085]
[1763566229916,3.288662,136.27,136.25,0.04780085]
[1763566230424,0.048662,136.27,136.25,6.65770085]
[1763566230718,3.288662,136.27,136.25,0.04780085]
[1763566230911,0.048662,136.27,136.25,0.04780085]
[1763566231411,3.24,136.32,136.25,0.04780085]
[1763566231611,3.24,136.31,136.22,15.92]
[1763566231815,3.24,136.29,136.2,15.92]
[1763566232208,3.24,136.25,136.23,0.05556751]
[1763566232410,3.24,136.25,136.14,102.9063]
[1763566232411,3.24,136.25,136.14,102.91]
[1763566232608,3.24,136.25,136.15,17.19772066]
[1763566233016,3.24,136.25,136.15,1.27772066]
[1763566233211,3.24,136.25,136.13,102.9142]
[1763566233518,0.04978611,136.2,136.18,0.04763359]
[1763566233715,0.05066991,136.2,136.18,0.04763359]
[1763566234220,3.29066991,136.2,136.1,102.9399]
[1763566234514,3.24,136.2,136.1,15.92]
[1763566235323,0.04857146,136.16,136.14,0.05485716]
[1763566235623,3.28857146,136.16,136.14,0.05485716]
[1763566236616,3.28857146,136.16,136.06,108.92714604]
[1763566236617,3.28857146,136.16,136.06,110.20580565]
[1763566236816,3.24,136.16,136.06,120.16915961]
[1763566237121,12.0875311,136.2,136.06,120.16915961]
[1763566237122,3.24,136.2,136.11,102.9327]
[1763566237324,3.24,136.2,136.12,6.6162]
[1763566237519,3.24,136.2,136.06,32.29404152]
[1763566237520,3.24,136.2,136.06,104.24825961]
[1763566237822,0.0488966,136.14,136.12,0.0496669]
[1763566238014,0.04871967,136.14,136.12,0.04982287]
[1763566238213,3.08871967,136.14,136.12,0.04982287]
[1763566238416,3.08871967,136.14,136.06,15.92]
[1763566238615,3.08871967,136.14,136.03,2.03003734]
[1763566238616,105.9605,136.13,136.03,2.03003734]
[1763566238823,105.9605,136.13,135.9,191.1508]
[1763566238824,3.04,136.1,135.9,88.06]
[1763566239016,3.04,136.09,135.95,1.2794588]
[1763566239527,0.05343985,136.03,136.01,0.02683417]
[1763566239726,0.04974733,136.03,136.01,0.02683417]
[1763566240228,3.04,136.09,136.01,1.50683417]
[1763566240415,5.42594916,136.15,136.03,102.9927]
[1763566240617,3.04,136.14,135.97,103.0349]
[1763566240917,3.04,136.13,135.99,103.0226]
[1763566241114,0.05003853,136.07,136.06,102.9671]
[1763566241313,8.88322188,136.2,136.06,102.9671]
[1763566241314,3.04,136.16,136.08,102.95]
[1763566241520,3.04,136.16,136.07,102.9602]
[1763566241830,3.04,136.16,136.08,102.9525]
[1763566242123,3.04,136.2,136.11,6.6166]
[1763566242320,3.04,136.2,136.06,102.9689]
[1763566242518,0.05587405,136.14,136.12,0.04901111]
[1763566242721,3.04,136.21,136.08,15.92]
[1763566242919,3.04,136.21,136.07,5.54]
[1763566243117,3.04,136.21,136.06,102.9679]
[1763566243321,3.04,136.2,136.1,102.9374]
[1763566243524,3.04,136.2,136.11,102.9283]
[1763566243827,9.1912802,136.24,136.14,0.05536506]
[1763566243828,3.09289514,136.17,136.14,0.05536506]
[1763566244130,0.05281928,136.17,136.14,0.05163045]
[1763566244924,3.09281928,136.17,136.14,0.05163045]
[1763566245119,0.05281928,136.17,136.14,0.05163045]
[1763566245628,3.09281928,136.17,136.14,0.05163045]
[1763566245834,3.04,136.16,136.03,102.9894]
[1763566246130,3.04,136.15,136.02,15.92]
[1763566246331,3.04,136.15,136.02,125.5387]
[1763566246521,3.04,136.15,136.03,102.9933]
[1763566246718,3.04,136.15,136.04,102.984]
[1763566246914,0.05503886,136.1,136.08,0.04885762]
[1763566247119,0.04873562,136.1,136.08,0.04885762]
[1763566247928,109.58682885,136.23,136.08,103.00105762]
[1763566248118,3.04,136.21,136.09,102.9471]
[1763566248323,3.04,136.21,136.08,102.9522]
[1763566248324,3.04,136.2,136.06,118.886]
[1763566248521,3.04,136.2,136.09,102.947]
[1763566248830,3.04,136.25,136.11,102.9319]
[1763566249024,3.04,136.18,136.17,0.04817144]
[1763566249220,0.04922706,136.19,136.17,0.04817144]
[1763566249716,102.892,136.17,135.96,22.04]
[1763566249914,3.04,136.09,135.9,125.06749093]
[1763566250115,3.04,136.08,135.96,8.12]
[1763566250328,3.04,136.08,135.93,103.0653]
[1763566250529,102.9275,136.12,135.93,103.0653]
[1763566250530,3.04,136.12,135.98,103.0306]
[1763566250721,0.05553676,136.06,136.04,0.04641622]
[1763566250915,3.04,136.12,136.04,0.04641622]
[1763566251121,3.09224782,136.09,136.04,0.04641622]
[1763566251322,0.05224782,136.09,136.05,0.04783861]
[1763566251727,0.05224782,136.09,136.06,102.9693]
[1763566251931,0.05224782,136.09,136.06,15.92]
[1763566253625,0.05224782,136.09,136.06,118.9085]
[1763566253925,3.04,136.17,136.09,6.6176]
[1763566254125,3.04,136.23,136.08,118.8938]
[1763566254331,3.04,136.23,136.08,15.94]
[1763566254524,3.04,136.23,136.08,6.6182]
[1763566254725,3.04,136.16,136.05,15.94]
[1763566255038,3.04,136.16,136.06,102.9698]
[1763566255332,3.04,136.16,136.05,118.9177]
[1763566255526,3.04,136.16,136.07,6.6187]
[1763566255830,0.05409999,136.13,136.1,0.05253415]
[1763566256035,0.0521266,136.13,136.1,0.04875633]
[1763566256931,3.0921266,136.13,136.1,0.04875633]
[1763566259122,3.0921266,136.13,135.96,103.0456]
[1763566259123,4.5521266,136.13,135.96,103.0456]
[1763566259328,3.04,136.11,135.97,15.94]
[1763566259528,3.04,136.11,135.97,118.9755]
[1763566259731,3.04,136.11,135.98,103.0307]
[1763566260122,12.2312802,136.16,136.05,102.9778]
[1763566260329,3.04,136.16,136.05,15.94]
[1763566260531,3.04,136.16,136.04,118.9227]
[1763566260930,3.04,136.16,136.05,102.978]
[1763566261128,3.04,136.11,135.96,103.0462]
[1763566261330,3.04,136.08,135.95,1.27952937]
[1763566261529,3.04,136.08,135.96,15.94]
[1763566261727,3.04,136.08,135.95,1.27952937]
[1763566261928,3.04,136.08,135.95,104.33292937]
[1763566262128,3.04,136.08,135.95,1.27952937]
[1763566262330,0.05479155,136.03,136.0,0.04723079]
[1763566262836,3.09479155,136.03,136.0,0.04723079]
[1763566263026,0.05479155,136.03,136.0,0.04723079]
[1763566263227,3.09479155,136.03,136.0,0.04723079]
[1763566263733,3.09479155,136.03,135.93,15.94]
[1763566263928,3.04,136.03,135.93,15.94]
[1763566264127,106.0638,135.99,135.91,1.27995292]
[1763566264329,3.04,135.95,135.8,103.1677]
[1763566264534,3.04,135.95,135.84,103.1345]
[1763566264835,0.04882152,135.89,135.86,0.03610929]
[1763566265031,3.04,135.95,135.86,15.96]
[1763566265229,15.96,135.99,135.9,103.0914]
[1763566265230,3.04,135.99,135.9,103.0914]
[1763566265534,3.04,135.99,135.86,103.1222]
[1763566265737,3.04,135.99,135.91,103.0834]
[1763566265939,0.05373693,135.96,135.94,0.04627185]
[1763566266234,3.09373693,135.96,135.94,0.04627185]
[1763566266738,0.05373693,135.96,135.94,0.04627185]
[1763566267242,3.04,136.01,135.94,103.10707185]
[1763566267426,3.04,136.01,135.94,0.04627185]
[1763566267623,3.04,136.01,135.94,103.10737185]
[1763566267827,3.04,136.01,135.94,0.04627185]
[1763566268234,3.24362567,135.99,135.94,0.04627185]
[1763566268439,3.24362567,135.99,135.95,0.04724233]
[1763566268640,0.05362567,135.99,135.95,0.04724233]
[1763566269242,0.05362567,135.99,135.95,6.67174233]
[1763566269433,0.05362567,135.99,135.95,0.04724233]
[1763566270031,3.24362567,135.99,135.76,103.1941]
[1763566270235,3.19,135.97,135.84,1.28058878]
[1763566270443,3.19,135.97,135.85,15.98]
[1763566270943,3.19,135.97,135.86,6.6289]
[1763566271143,0.05503457,135.93,135.9,0.05547087]
[1763566271443,3.24503457,135.93,135.9,0.05547087]
[1763566271740,3.19,135.89,135.74,2.03003734]
[1763566271929,3.19,135.89,135.76,15.98]
[1763566272130,3.19,135.89,135.76,17.26143757]
[1763566272537,3.19,135.89,135.77,6.6333]
[1763566272740,3.19,135.89,135.82,0.03735862]
[1763566272741,0.0529715,135.84,135.82,0.03735862]
[1763566273037,0.05206114,135.84,135.82,0.03735862]
[1763566273237,3.19,135.92,135.82,0.03735862]
[1763566273536,103.109,135.88,135.75,0.21049]
[1763566273744,103.1517,135.83,135.75,0.21049]
[1763566273933,103.1517,135.83,135.74,2.03003734]
[1763566273934,3.19,135.82,135.74,2.03003734]
[1763566274440,103.2102,135.75,135.6,22.34743097]
[1763566274629,3.19,135.72,135.55,4.26]
[1763566274939,3.19,135.72,135.54,14.64]
[1763566275329,3.19,135.72,135.56,9.1912802]
[1763566275534,3.19,135.72,135.61,103.3094]
[1763566275838,3.19,135.72,135.62,0.03983367]
[1763566276034,3.19,135.72,135.6,16.06]
[1763566276233,3.19,135.72,135.6,119.3764]
[1763566276440,3.19,135.72,135.6,16.06]
[1763566276834,3.24646211,135.67,135.6,16.06]
[1763566277137,3.19,135.77,135.65,103.2767]
[1763566277339,3.19,135.77,135.63,103.2935]
[1763566277531,3.19,135.77,135.63,16.12]
[1763566277741,3.19,135.77,135.67,103.2634]
[1763566277931,3.19,135.77,135.69,103.2482]
[1763566278238,0.05646804,135.74,135.72,0.05629185]
[1763566278439,0.04713602,135.74,135.72,0.04935267]
[1763566278951,3.19,135.82,135.74,103.2101]
[1763566279145,3.19,135.86,135.75,119.3602]
[1763566279450,3.19,135.91,135.82,103.1493]
[1763566279644,3.19,135.91,135.83,16.16]
[1763566279839,0.050665,135.88,135.86,0.05652595]
[1763566280241,3.19,135.79,135.57,16.16]
[1763566280444,3.19,135.79,135.64,103.2864]
[1763566280757,3.19,135.79,135.69,103.2472]
[1763566281047,3.19,135.79,135.65,103.2792]
[1763566281243,0.05194034,135.75,135.72,0.05375075]
[1763566281453,0.05194034,135.75,135.72,16.33375075]
[1763566281651,0.05194034,135.75,135.72,0.05375075]
[1763566282355,3.24194034,135.75,135.72,16.33375075]
[1763566282559,3.24194034,135.75,135.6,103.3176]
[1763566282846,103.2092,135.75,135.61,16.28]
[1763566283045,103.2455,135.7,135.54,103.3614]
[1763566283241,3.19,135.71,135.55,119.6354]
[1763566283555,0.05609698,135.64,135.62,0.03432115]
[1763566283841,0.05507936,135.64,135.62,0.03432115]
[1763566284355,0.05507936,135.64,135.5,103.3921]
[1763566284356,4.72507936,135.64,135.53,16.28]
[1763566284652,3.19,135.64,135.53,16.28]
[1763566284847,3.19,135.64,135.53,119.6505]
[1763566285040,3.19,135.64,135.53,16.28]
[1763566285244,3.13173853,135.6,135.54,1.28356447]
[1763566285544,0.04729004,135.58,135.49,103.4007]
[1763566285741,0.0546831,135.55,135.46,174.6132802]
[1763566286048,0.00294215,135.52,135.47,103.4165]
[1763566286248,3.08,135.62,135.48,103.408]
[1763566286542,3.08,135.62,135.48,103.41]
[1763566286743,3.08,135.62,135.49,17.58396702]
[1763566286946,3.13152944,135.57,135.54,0.04816794]
[1763566287147,3.13152944,135.57,135.46,62.0]
[1763566287451,3.08,135.57,135.45,3.31435975]
[1763566287655,3.08,135.57,135.45,2.03003734]
[1763566287950,3.08,135.57,135.45,3.31438345]
[1763566288146,3.12939052,135.52,135.45,2.03003734]
[1763566288648,0.04939052,135.52,135.48,103.4082]
[1763566288844,0.04939052,135.52,135.48,110.056]
[1763566289054,103.2776,135.66,135.47,103.4131]
[1763566289055,3.08,135.69,135.55,103.3545]
[1763566289354,3.08,135.69,135.53,103.366]
[1763566289355,3.08,135.68,135.53,103.366]
[1763566289656,3.08,135.66,135.5,103.3953]
[1763566289834,3.08,135.66,135.44,103.4352]
[1763566289835,3.08,135.62,135.44,103.4352]
[1763566290041,3.12940845,135.55,135.52,0.05122258]
[1763566290243,3.13022511,135.55,135.52,0.05122258]
[1763566290447,0.05022511,135.55,135.52,0.05122258]
[1763566290653,3.08,135.64,135.53,16.34]
[1763566290850,3.08,135.64,135.48,103.4084]
[1763566291146,3.08,135.64,135.45,2.03003734]
[1763566291147,3.08,135.58,135.45,2.03003734]
[1763566291344,3.08,135.56,135.45,2.03003734]
[1763566291846,3.13563002,135.52,135.49,0.053066]
[1763566292150,3.13563002,135.52,135.45,2.03003734]
[1763566292851,0.05563002,135.52,135.45,2.03003734]
[1763566293048,0.05563002,135.52,135.47,0.04838169]
[1763566293355,3.08,135.6,135.5,103.3936]
[1763566293552,3.08,135.6,135.47,103.414]
[1763566293858,3.08,135.6,135.5,103.3926]
[1763566294147,3.08,135.6,135.45,105.46113734]